bitfinex/quotes_BTCUSD_20220202
["timestamp","ask_amount","ask_price","bid_price","bid_amount"]
[1643820524163,0.17599521,37305.0,37301.0,0.178177]
[1643820524364,0.00017866,37305.0,37301.0,0.178177]
[1643820524565,0.00017866,37305.0,37302.0,0.161847]
[1643820524765,0.00017866,37305.0,37301.0,0.159251]
[1643820524965,0.001,37306.0,37302.0,0.416081]
[1643820524966,0.00117866,37306.0,37302.0,0.416081]
[1643820525166,0.00117866,37306.0,37303.0,0.159241]
[1643820525665,0.001,37306.0,37303.0,0.159241]
[1643820526918,0.09739312,37305.0,37302.0,0.0538]
[1643820527117,0.04146871,37304.0,37303.0,0.159241]
[1643820527317,0.00177705,37306.0,37301.0,0.159251]
[1643820527717,0.00159839,37306.0,37301.0,0.45881424]
[1643820527918,0.001,37306.0,37302.0,0.159247]
[1643820528318,0.00055569,37305.0,37302.0,0.159247]
[1643820528717,0.0413765,37305.0,37301.0,0.159251]
[1643820528919,0.03465218,37304.0,37300.0,14.31657331]
[1643820529125,0.03581576,37303.0,37300.0,14.31657331]
[1643820529317,0.04792991,37302.0,37300.0,14.31657331]
[1643820529566,0.33066091,37304.0,37301.0,0.159252]
[1643820529771,0.80424,37303.0,37301.0,0.159252]
[1643820532172,0.80424,37303.0,37302.0,0.08545577]
[1643820532572,0.80424,37303.0,37302.0,0.24470377]
[1643820532773,0.80424,37303.0,37300.0,13.8037511]
[1643820533413,0.80424,37303.0,37302.0,0.08681545]
[1643820534213,0.80424,37303.0,37302.0,0.18681545]
[1643820534814,0.80424,37303.0,37302.0,0.24061545]
[1643820539173,0.80438715,37303.0,37302.0,0.24061545]
[1643820539380,0.80438715,37303.0,37302.0,0.14061545]
[1643820539576,0.80438715,37303.0,37302.0,0.0538]
[1643820539777,0.80438715,37303.0,37300.0,13.5891511]
[1643820539973,0.80438715,37303.0,37300.0,13.6429511]
[1643820540374,0.22434774,37302.0,37300.0,13.5891511]
[1643820540824,0.80438715,37303.0,37300.0,13.5891511]
[1643820541421,0.80491859,37303.0,37300.0,13.5891511]
[1643820542430,0.80438715,37303.0,37300.0,13.6391511]
[1643820542725,0.80492223,37303.0,37300.0,13.6929511]
[1643820543322,0.80492223,37303.0,37302.0,0.30336748]
[1643820543525,0.80492223,37303.0,37302.0,0.75835373]
[1643820543725,0.79938715,37303.0,37302.0,0.80835373]
[1643820543926,0.00053589,37303.0,37302.0,1.35835373]
[1643820544124,0.00053589,37303.0,37302.0,0.80835373]
[1643820544596,0.00017902,37305.0,37303.0,1.65]
[1643820544793,0.00017902,37305.0,37304.0,2.4758]
[1643820544997,0.00017902,37305.0,37304.0,2.54281561]
[1643820545192,0.001,37312.0,37304.0,2.65025617]
[1643820545392,0.001,37312.0,37306.0,0.672]
[1643820545591,0.001,37312.0,37307.0,0.0538]
[1643820545791,0.001,37312.0,37308.0,0.67112194]
[1643820545993,0.001,37312.0,37309.0,0.3469391]
[1643820546193,0.001,37312.0,37310.0,0.10100783]
[1643820546393,0.001,37312.0,37311.0,0.0538]
[1643820546994,0.001,37312.0,37311.0,0.120814]
[1643820547195,0.001,37312.0,37311.0,0.220814]
[1643820547397,0.05990621,37316.0,37311.0,0.33782804]
[1643820547398,0.03670305,37316.0,37311.0,0.33782804]
[1643820547598,0.00057842,37313.0,37311.0,0.40484204]
[1643820547794,0.00057842,37313.0,37311.0,0.5388669]
[1643820548417,0.03670305,37316.0,37311.0,0.5388669]
[1643820548820,0.00053643,37314.0,37311.0,0.5388669]
[1643820549421,0.00053643,37314.0,37311.0,0.6058759]
[1643820549720,0.03670305,37316.0,37311.0,0.6058759]
[1643820550019,0.00053596,37314.0,37311.0,0.9702598]
[1643820550223,0.00053596,37314.0,37311.0,0.9032508]
[1643820550623,0.00053596,37314.0,37311.0,0.4218529]
[1643820550825,0.00053596,37314.0,37311.0,0.8258]
[1643820551023,0.37351545,37316.0,37311.0,0.7258]
[1643820551222,0.00053596,37314.0,37311.0,0.7258]
[1643820552186,0.00053596,37314.0,37311.0,0.0538]
[1643820552187,0.33743651,37314.0,37311.0,0.0538]
[1643820552389,0.33797247,37314.0,37311.0,0.0538]
[1643820552793,0.5,37313.0,37308.0,0.15148122]
[1643820552987,0.5,37313.0,37308.0,0.20528122]
[1643820553390,0.55,37313.0,37308.0,0.0538]
[1643820553591,0.00053885,37312.0,37308.0,0.0538]
[1643820553791,0.33797536,37312.0,37308.0,0.0538]
[1643820553993,0.33743651,37311.0,37308.0,0.0538]
[1643820554189,0.42547885,37311.0,37308.0,0.0538]
[1643820554392,0.47547885,37311.0,37302.0,0.01957127]
[1643820554593,0.47547885,37311.0,37302.0,0.0008]
[1643820554594,0.37109472,37309.0,37302.0,0.0008]
[1643820554792,0.13804234,37311.0,37302.0,0.0008]
[1643820554793,0.33743651,37306.0,37302.0,0.0008]
[1643820554994,0.33743651,37305.0,37302.0,0.0008]
[1643820555191,0.38235937,37305.0,37302.0,0.0008]
[1643820555397,0.42158603,37306.0,37303.0,0.24630128]
[1643820555816,0.08414952,37306.0,37303.0,0.24630128]
[1643820556016,0.00053887,37305.0,37303.0,0.24630128]
[1643820556223,0.04231112,37305.0,37304.0,0.20342516]
[1643820556417,0.00053887,37305.0,37304.0,0.20342516]
[1643820556818,0.33743651,37308.0,37303.0,0.62021062]
[1643820557018,0.33743651,37308.0,37303.0,0.24630128]
[1643820557220,0.18837528,37308.0,37303.0,0.24630128]
[1643820557625,0.18837528,37308.0,37302.0,0.0843177]
[1643820557626,0.14525577,37306.0,37302.0,0.0008]
[1643820557821,1.45,37303.0,37302.0,0.0008]
[1643820558023,0.79319835,37303.0,37300.0,13.5891511]
[1643820558222,1.14470148,37303.0,37300.0,13.5891511]
[1643820558419,0.80424,37303.0,37300.0,13.5891511]
[1643820558619,0.80424,37303.0,37302.0,0.25585627]
[1643820559221,0.80424,37303.0,37302.0,0.10262962]
[1643820560270,0.07023897,37303.0,37302.0,0.33526145]
[1643820560868,0.07023897,37303.0,37302.0,0.68674007]
[1643820561071,0.07023897,37303.0,37302.0,0.9278052]
[1643820561670,0.00066547,37305.0,37302.0,0.9278052]
[1643820561869,7.777e-05,37305.0,37302.0,0.9278052]
[1643820562069,0.00066547,37305.0,37302.0,0.57632658]
[1643820562871,7.777e-05,37305.0,37302.0,0.57632658]
[1643820563321,0.00066548,37305.0,37302.0,0.57632658]
[1643820564118,7.777e-05,37305.0,37302.0,0.57632658]
[1643820564317,0.00014412,37303.0,37302.0,0.57632658]
[1643820564519,0.00014412,37303.0,37302.0,0.10262962]
[1643820565116,0.00014412,37303.0,37300.0,13.5891511]
[1643820565518,0.28052378,37303.0,37300.0,13.5891511]
[1643820565717,0.03530587,37302.0,37300.0,13.5891511]
[1643820565923,0.37576735,37302.0,37300.0,13.5891511]
[1643820566318,0.71486597,37303.0,37300.0,13.5891511]
[1643820566520,0.08871911,37303.0,37300.0,13.5891511]
[1643820566819,0.05,37302.0,37300.0,13.5891511]
[1643820567278,0.67349924,37303.0,37300.0,13.5891511]
[1643820567475,0.38983017,37302.0,37300.0,13.5891511]
[1643820567871,0.43983017,37302.0,37300.0,13.5891511]
[1643820568071,0.09936869,37302.0,37300.0,13.5891511]
[1643820568271,0.04936869,37302.0,37300.0,13.5891511]
[1643820568479,0.05,37302.0,37300.0,13.5891511]
[1643820568672,0.34046148,37302.0,37300.0,13.5891511]
[1643820568875,0.05,37302.0,37300.0,13.5891511]
[1643820569072,0.00014434,37301.0,37300.0,13.5891511]
[1643820572220,0.00014434,37301.0,37300.0,13.6391511]
[1643820573123,0.00014434,37301.0,37300.0,12.88155485]
[1643820573124,1.40014434,37301.0,37300.0,12.88155485]
[1643820573325,2.00417634,37301.0,37300.0,12.88155485]
[1643820573525,2.00417634,37301.0,37300.0,11.97232091]
[1643820573526,2.52158343,37301.0,37300.0,11.97232091]
[1643820573725,2.67158343,37301.0,37300.0,9.28864922]
[1643820573924,3.79567616,37301.0,37300.0,8.10814922]
[1643820574124,3.93476277,37301.0,37300.0,6.94614922]
[1643820574323,3.93476277,37301.0,37300.0,5.33004922]
[1643820574324,1.49708932,37301.0,37300.0,5.33004922]
[1643820574573,1.15845634,37301.0,37300.0,5.33004922]
[1643820574771,1.14427876,37301.0,37300.0,5.33004922]
[1643820574974,1.14428565,37301.0,37300.0,5.33004922]
[1643820575172,2.00845634,37301.0,37300.0,5.33004922]
[1643820575371,2.34830734,37301.0,37300.0,5.33004922]
[1643820575773,2.00845634,37301.0,37300.0,5.33004922]
[1643820575973,1.15845634,37301.0,37300.0,5.33004922]
[1643820576173,1.80845634,37301.0,37300.0,5.33004922]
[1643820576378,1.14397551,37301.0,37300.0,5.33004922]
[1643820576576,0.80442434,37301.0,37300.0,5.33004922]
[1643820576875,0.80442434,37301.0,37300.0,5.70481285]
[1643820577076,0.80442434,37301.0,37300.0,5.56085801]
[1643820577576,0.75228455,37301.0,37300.0,5.61465801]
[1643820578075,0.00057887,37305.0,37300.0,5.81573001]
[1643820578531,0.33973037,37311.0,37304.0,0.37275838]
[1643820578731,0.33973037,37311.0,37310.0,0.08323866]
[1643820578935,0.0001792,37311.0,37310.0,0.08323866]
[1643820579131,0.39667466,37312.0,37310.0,0.08323866]
[1643820579334,0.1101847,37312.0,37306.0,0.30535844]
[1643820579533,0.33943313,37309.0,37306.0,0.30535844]
[1643820579734,0.33943313,37308.0,37306.0,0.30535844]
[1643820580132,1.03943313,37307.0,37306.0,0.30535844]
[1643820580334,0.7,37307.0,37306.0,0.30535844]
[1643820580537,1.03943313,37307.0,37302.0,0.08565023]
[1643820580734,0.33943313,37307.0,37302.0,0.08565023]
[1643820580935,0.33943313,37307.0,37306.0,0.24176701]
[1643820581134,0.38943313,37308.0,37306.0,0.24176701]
[1643820581335,0.33943313,37310.0,37306.0,0.24176701]
[1643820581537,0.33943313,37311.0,37306.0,0.24176701]
[1643820581735,0.33943313,37310.0,37306.0,0.24176701]
[1643820581936,0.33943313,37311.0,37309.0,0.25095556]
[1643820582171,0.33943313,37311.0,37309.0,0.34881998]
[1643820582370,0.33943313,37310.0,37309.0,0.34881998]
[1643820582573,0.0006024,37310.0,37309.0,0.34881998]
[1643820582970,0.34025185,37310.0,37309.0,0.34881998]
[1643820583374,0.33964945,37310.0,37309.0,0.34881998]
[1643820583969,0.0006024,37311.0,37309.0,0.34881998]
[1643820583970,0.34025185,37311.0,37309.0,0.34881998]
[1643820584571,0.33964945,37311.0,37309.0,0.34881998]
[1643820584970,0.33982865,37311.0,37309.0,0.34881998]
[1643820585471,0.33964945,37311.0,37309.0,0.34881998]
[1643820585926,0.33964945,37310.0,37309.0,0.09786442]
[1643820586329,0.0006024,37312.0,37309.0,0.09786442]
[1643820586330,0.33964945,37311.0,37309.0,0.09786442]
[1643820587628,0.33964945,37310.0,37305.0,0.0538]
[1643820588231,0.33464945,37309.0,37305.0,0.0538]
[1643820588629,0.0506024,37309.0,37305.0,0.0538]
[1643820588827,0.14693005,37309.0,37302.0,0.29198722]
[1643820589028,0.03944989,37308.0,37302.0,0.20341663]
[1643820589230,0.14693005,37309.0,37302.0,0.20341663]
[1643820589431,0.14632765,37309.0,37302.0,0.20341663]
[1643820589870,0.05,37309.0,37302.0,0.20341663]
[1643820590071,0.00011484,37310.0,37302.0,0.20341663]
[1643820590271,0.00011484,37310.0,37304.0,0.27868577]
[1643820590871,0.00011484,37310.0,37302.0,0.29165756]
[1643820591476,0.00011484,37310.0,37303.0,0.0538]
[1643820591673,0.00011484,37310.0,37305.0,0.067025]
[1643820591874,0.12511484,37311.0,37305.0,0.067025]
[1643820592082,0.12511484,37311.0,37310.0,0.07534332]
[1643820593076,0.08,37311.0,37310.0,0.07534332]
[1643820593352,0.08,37311.0,37307.0,0.067025]
[1643820593353,0.4,37310.0,37307.0,0.067025]
[1643820593538,0.4,37310.0,37302.0,0.12242239]
[1643820593739,0.19691881,37306.0,37301.0,0.1]
[1643820593936,0.19691881,37306.0,37299.0,0.13449416]
[1643820594335,0.08504496,37305.0,37299.0,0.134064]
[1643820594536,0.08504496,37305.0,37300.0,5.63008468]
[1643820594741,0.00060227,37305.0,37300.0,5.63008468]
[1643820594939,0.00060227,37305.0,37300.0,5.33004922]
[1643820595437,0.24691881,37306.0,37300.0,5.33004922]
[1643820595837,0.00060227,37305.0,37300.0,5.33004922]
[1643820596038,0.09858943,37304.0,37300.0,5.33004922]
[1643820596238,0.40372152,37304.0,37300.0,5.25004922]
[1643820597079,0.40372152,37304.0,37300.0,4.0462498]
[1643820597080,0.32634361,37303.0,37300.0,4.0462498]
[1643820597287,0.43766723,37302.0,37300.0,4.0462498]
[1643820597477,2.73766011,37301.0,37300.0,4.0462498]
[1643820597678,3.63475215,37301.0,37300.0,4.0462498]
[1643820597981,3.47581172,37301.0,37300.0,3.1370356]
[1643820598176,3.85347482,37301.0,37300.0,3.1370356]
[1643820598377,3.81060484,37301.0,37300.0,3.1370356]
[1643820598577,4.01866639,37301.0,37300.0,3.1370356]
[1643820598778,3.96866639,37301.0,37300.0,3.1370356]
[1643820598979,1.92634754,37301.0,37300.0,3.1320356]
[1643820599178,1.53036827,37301.0,37300.0,3.1320356]
[1643820599578,1.54502402,37301.0,37300.0,3.1320356]
[1643820599782,1.67633872,37301.0,37300.0,3.1320356]
[1643820600926,0.98293047,37301.0,37300.0,3.1320356]
[1643820601128,0.98293047,37301.0,37300.0,3.1270356]
[1643820601728,1.32230672,37301.0,37300.0,3.1270356]
[1643820602029,0.98293047,37301.0,37300.0,3.1270356]
[1643820603030,0.80426,37301.0,37300.0,3.1270356]
[1643820603234,0.80426,37301.0,37300.0,3.33873908]
[1643820603431,0.80426,37301.0,37300.0,3.1270356]
[1643820604034,0.80444319,37301.0,37300.0,3.1270356]
[1643820604235,0.80444319,37301.0,37300.0,3.1808356]
[1643820604867,0.80444319,37301.0,37300.0,3.3308356]
[1643820605074,0.80444319,37301.0,37300.0,3.946922]
[1643820605667,0.79944319,37301.0,37300.0,3.946922]
[1643820606270,0.79944319,37301.0,37300.0,3.42363125]
[1643820606572,0.79944319,37301.0,37300.0,3.1270356]
[1643820607368,0.79944319,37301.0,37300.0,3.24151667]
[1643820607775,0.79944319,37301.0,37300.0,3.33496077]
[1643820607970,0.79944319,37301.0,37300.0,3.08414256]
[1643820608617,0.79944319,37301.0,37300.0,3.17425421]
[1643820608822,0.79944319,37301.0,37300.0,3.22425421]
[1643820609018,0.79944319,37301.0,37300.0,3.45369985]
[1643820609218,0.79944319,37301.0,37300.0,3.30369985]
[1643820610424,0.79944319,37301.0,37300.0,2.98081011]
[1643820611823,2.23431588,37301.0,37300.0,2.98081011]
[1643820612071,0.79944319,37301.0,37300.0,2.98081011]
[1643820612271,0.97811366,37301.0,37300.0,2.98081011]
[1643820612472,0.79944319,37301.0,37300.0,2.98081011]
[1643820612672,0.79944319,37301.0,37300.0,3.33510343]
[1643820612877,0.17867047,37303.0,37300.0,3.33510343]
[1643820612878,0.17867047,37303.0,37301.0,0.35]
[1643820613072,0.0001792,37309.0,37301.0,0.72281885]
[1643820613073,0.00043894,37305.0,37301.0,0.72281885]
[1643820613372,0.00043894,37305.0,37302.0,0.0494]
[1643820613772,0.00043894,37305.0,37303.0,0.25335421]
[1643820613973,0.00043884,37305.0,37304.0,1.3994]
[1643820614178,0.00043884,37305.0,37304.0,0.183432]
[1643820614477,0.00043884,37305.0,37304.0,0.3174638]
[1643820614675,0.33919706,37310.0,37309.0,0.33321348]
[1643820614874,0.33919706,37310.0,37308.0,0.20745999]
[1643820615077,0.33937626,37310.0,37308.0,0.20745999]
[1643820615379,0.0001792,37310.0,37308.0,0.20745999]
[1643820615574,0.18351601,37314.0,37308.0,0.20745999]
[1643820615575,0.0001792,37311.0,37308.0,0.20745999]
[1643820615827,0.0001792,37311.0,37306.0,0.067026]
[1643820616022,0.44675712,37312.0,37306.0,0.116426]
[1643820616422,0.00046115,37311.0,37306.0,0.0494]
[1643820616621,0.00064035,37311.0,37306.0,0.0494]
[1643820616822,0.00064035,37311.0,37307.0,0.20268717]
[1643820617022,0.00064035,37311.0,37308.0,0.0494]
[1643820617222,0.34638256,37314.0,37308.0,0.0494]
[1643820617422,0.0001792,37314.0,37308.0,0.0494]
[1643820617620,0.0001792,37314.0,37312.0,0.10378463]
[1643820617820,0.44917262,37316.0,37311.0,0.11641397]
[1643820618024,0.44917262,37316.0,37311.0,0.0494]
[1643820618621,0.0001792,37316.0,37311.0,0.0494]
[1643820618822,0.0012792,37317.0,37311.0,0.0494]
[1643820619025,0.00060395,37315.0,37311.0,0.0494]
[1643820619222,0.00060395,37315.0,37312.0,0.067014]
[1643820619423,0.00060395,37315.0,37313.0,0.28497708]
[1643820619678,0.00060395,37315.0,37314.0,0.08990453]
[1643820619873,0.0001792,37316.0,37314.0,0.08990453]
[1643820620076,0.00060395,37316.0,37314.0,0.08990453]
[1643820620476,0.00078315,37316.0,37315.0,0.42340772]
[1643820620679,0.00078315,37316.0,37315.0,0.067009]
[1643820621077,0.0012792,37317.0,37315.0,0.067009]
[1643820621278,0.00188314,37317.0,37315.0,0.067009]
[1643820621678,0.00188314,37317.0,37315.0,0.134014]
[1643820621878,0.00188314,37317.0,37315.0,0.20102004]
[1643820622079,0.00188314,37317.0,37316.0,0.86370409]
[1643820622281,0.0011,37317.0,37316.0,0.91310409]
[1643820623081,0.0011,37317.0,37316.0,0.0494]
[1643820623336,0.0011,37317.0,37314.0,0.0722]
[1643820623534,0.34004359,37316.0,37314.0,0.0722]
[1643820623732,1.7,37315.0,37314.0,0.0722]
[1643820623933,2.50397,37315.0,37314.0,0.0722]
[1643820624335,0.00034181,37316.0,37315.0,1.05]
[1643820624535,0.00034181,37316.0,37315.0,1.0994]
[1643820624730,0.00016261,37316.0,37315.0,1.4994]
[1643820624930,0.0012792,37317.0,37315.0,1.0994]
[1643820625130,0.0012792,37317.0,37316.0,1.15]
[1643820625332,0.0011,37317.0,37316.0,1.49899694]
[1643820625533,0.73646272,37327.0,37318.0,1.466989]
[1643820625735,0.3508848,37329.0,37319.0,0.49560336]
[1643820625936,0.01632095,37326.0,37320.0,0.34620336]
[1643820626134,0.01632095,37326.0,37321.0,0.0494]
[1643820626333,0.01632095,37326.0,37322.0,0.26600828]
[1643820626535,0.01614162,37326.0,37325.0,0.33809387]
[1643820626737,0.00017933,37327.0,37325.0,0.38749387]
[1643820626935,0.00017933,37327.0,37325.0,0.43749387]
[1643820627170,0.011,37329.0,37327.0,0.00017933]
[1643820627171,0.00117933,37328.0,37327.0,0.00017933]
[1643820627369,0.00117933,37328.0,37327.0,0.04957933]
[1643820627769,0.001,37328.0,37327.0,0.04957933]
[1643820628171,0.00717933,37329.0,37328.0,1.4]
[1643820628371,0.001,37330.0,37329.0,2.0292403]
[1643820628577,0.001,37330.0,37329.0,2.44700531]
[1643820628769,0.001,37330.0,37329.0,2.54700531]
[1643820629171,0.001,37330.0,37329.0,1.79700531]
[1643820629774,0.001,37330.0,37329.0,0.84700531]
[1643820629974,0.001,37330.0,37329.0,0.14997147]
[1643820630825,0.001,37330.0,37329.0,0.0494]
[1643820631022,0.001,37330.0,37329.0,0.25438801]
[1643820631423,0.001,37330.0,37329.0,0.0494]
[1643820631620,0.001,37330.0,37329.0,0.12851743]
[1643820632022,0.001,37330.0,37329.0,0.17851743]
[1643820632421,0.001,37330.0,37329.0,0.45825566]
[1643820632622,0.001,37330.0,37329.0,0.12851743]
[1643820633422,0.001,37330.0,37329.0,0.19549443]
[1643820633621,0.001,37330.0,37329.0,0.41160645]
[1643820633826,4.139e-05,37331.0,37330.0,0.22614167]
[1643820634223,0.001,37332.0,37330.0,0.27554167]
[1643820634868,0.001,37332.0,37330.0,0.3040927]
[1643820635068,0.001,37332.0,37329.0,0.19609543]
[1643820635268,0.001,37332.0,37330.0,0.0494]
[1643820635968,0.0021,37333.0,37331.0,1.41638121]
[1643820636170,0.0021,37333.0,37332.0,0.0494]
[1643820637168,0.0021,37333.0,37329.0,0.19609543]
[1643820637368,0.0021,37333.0,37329.0,0.14609543]
[1643820637773,0.0021,37333.0,37329.0,0.19549543]
[1643820638320,0.00270342,37333.0,37329.0,0.19549543]
[1643820638722,0.00270342,37333.0,37329.0,0.116378]
[1643820638932,0.00270342,37333.0,37327.0,0.13413398]
[1643820639121,0.0021,37333.0,37327.0,0.13413398]
[1643820639421,0.00270342,37333.0,37327.0,0.13413398]
[1643820640027,0.002,37336.0,37331.0,0.10383522]
[1643820640231,0.002,37336.0,37332.0,1.82899386]
[1643820640423,0.002,37336.0,37333.0,0.116367]
[1643820640625,0.002,37336.0,37333.0,0.0494]
[1643820640827,0.002,37336.0,37333.0,0.0994]
[1643820641223,0.002,37336.0,37333.0,0.0494]
[1643820641427,0.00217945,37336.0,37333.0,0.0494]
[1643820641824,0.0026394,37336.0,37333.0,0.0494]
[1643820642067,0.0026394,37336.0,37334.0,0.066971]
[1643820642270,0.0026394,37336.0,37335.0,1.3494]
[1643820642467,0.00245995,37336.0,37335.0,1.71635361]
[1643820642670,0.002,37336.0,37335.0,1.71635361]
[1643820642866,0.002,37336.0,37335.0,1.3494]
[1643820643068,0.002,37336.0,37335.0,0.0494]
[1643820643272,0.0043,37340.0,37336.0,0.46696739]
[1643820643471,0.0032,37342.0,37339.0,0.066966]
[1643820643672,0.0032,37342.0,37340.0,0.0494]
[1643820644176,0.0036,37344.0,37341.0,0.81264665]
[1643820644371,0.0036,37344.0,37341.0,0.45888408]
[1643820644572,0.01907708,37348.0,37342.0,0.066957]
[1643820644771,0.03907643,37349.0,37342.0,0.066957]
[1643820645374,0.03907643,37349.0,37345.0,0.06695793]
[1643820645375,1.03907643,37349.0,37345.0,0.06695793]
[1643820645573,0.00060296,37347.0,37345.0,0.06695793]
[1643820646016,0.00060296,37347.0,37345.0,0.11695793]
[1643820646214,0.00060296,37347.0,37344.0,0.13390467]
[1643820646415,1.0111,37349.0,37346.0,0.07799413]
[1643820646617,0.00060296,37348.0,37346.0,0.02944813]
[1643820647220,0.00060296,37348.0,37346.0,0.07884813]
[1643820647618,0.0111,37349.0,37346.0,0.12884813]
[1643820647816,0.01155909,37349.0,37346.0,0.12884813]
[1643820648018,0.01155909,37349.0,37346.0,0.0994]
[1643820648221,0.01155909,37349.0,37344.0,0.13389535]
[1643820648517,0.01155909,37349.0,37343.0,0.06695581]
[1643820648717,0.01155909,37349.0,37344.0,0.0494]
[1643820648718,0.0111,37349.0,37344.0,0.0494]
[1643820648917,0.00060268,37348.0,37344.0,0.0494]
[1643820649119,0.00060268,37348.0,37345.0,0.08795969]
[1643820649320,0.00060268,37348.0,37347.0,0.26627483]
[1643820649891,0.0111,37349.0,37346.0,0.06695029]
[1643820650289,0.01166727,37349.0,37342.0,0.1667]
[1643820651086,0.0111,37349.0,37342.0,0.1667]
[1643820651287,0.07432577,37346.0,37344.0,0.1]
[1643820651489,0.33927847,37357.0,37345.0,0.1]
[1643820651688,0.1,37356.0,37344.0,0.1]
[1643820651892,0.1,37356.0,37340.0,0.67570696]
[1643820651893,0.33927847,37358.0,37355.0,0.1]
[1643820652092,0.00838,37359.0,37357.0,0.1]
[1643820652289,1.89233437,37358.0,37357.0,0.1]
[1643820652592,1.967035,37358.0,37357.0,0.1]
[1643820652990,2.321067,37358.0,37357.0,0.1]
[1643820654121,1.967035,37358.0,37357.0,0.1]
[1643820654321,1.89233437,37358.0,37357.0,0.1]
[1643820654924,1.5,37357.0,37347.0,0.34460456]
[1643820655121,0.1,37348.0,37346.0,0.22604945]
[1643820655322,0.1,37348.0,37345.0,0.02193695]
[1643820655323,0.1,37347.0,37345.0,0.02193695]
[1643820655526,0.1,37346.0,37345.0,0.02193695]
[1643820656523,0.1,37346.0,37345.0,0.01693695]
[1643820656723,0.1,37346.0,37341.0,0.27213934]
[1643820656924,0.1,37342.0,37341.0,0.27213934]
[1643820657173,0.2,37342.0,37341.0,0.27213934]
[1643820657370,0.1,37342.0,37341.0,0.27213934]
[1643820657569,0.1,37342.0,37341.0,1.32213934]
[1643820657870,0.1,37342.0,37341.0,0.49296845]
[1643820658173,0.0005905,37345.0,37341.0,0.49296845]
[1643820658174,0.0005905,37345.0,37342.0,0.883892]
[1643820658372,0.18104791,37356.0,37346.0,0.06694599]
[1643820658577,0.34765847,37359.0,37350.0,0.21534927]
[1643820658578,0.00838,37359.0,37350.0,0.21534927]
[1643820658770,0.00017941,37356.0,37350.0,0.21534927]
[1643820658969,0.25766183,37354.0,37350.0,0.21534927]
[1643820659172,0.02175439,37354.0,37353.0,0.005]
[1643820660072,0.02175439,37354.0,37353.0,0.54925519]
[1643820660472,0.02175439,37354.0,37353.0,0.26140629]
[1643820660673,0.02175439,37354.0,37353.0,0.005]
[1643820660924,0.08786332,37356.0,37353.0,0.005]
[1643820661126,0.00060253,37355.0,37353.0,0.005]
[1643820662027,0.00017941,37358.0,37353.0,0.005]
[1643820662229,0.00855941,37359.0,37352.0,0.06693779]
[1643820662431,0.00855941,37359.0,37352.0,0.07193779]
[1643820662432,0.00060253,37356.0,37352.0,0.07193779]
[1643820662826,0.10237613,37356.0,37352.0,0.07193779]
[1643820663226,0.00017941,37358.0,37352.0,0.20081479]
[1643820663428,0.00838,37359.0,37352.0,0.20081479]
[1643820663429,0.00017941,37356.0,37354.0,0.29346622]
[1643820663628,0.01301654,37354.0,37352.0,0.20081479]
[1643820663931,1.65,37353.0,37349.0,0.26775489]
[1643820664129,1.65,37353.0,37345.0,1.1509]
[1643820664130,0.37931459,37352.0,37345.0,1.1509]
[1643820664328,0.37431459,37352.0,37345.0,0.1]
[1643820664578,0.37431459,37352.0,37346.0,0.13390474]
[1643820664777,0.374494,37352.0,37346.0,0.13390474]
[1643820665176,0.23133675,37346.0,37345.0,0.1]
[1643820665576,0.00017941,37351.0,37345.0,0.1]
[1643820665775,0.7324176,37346.0,37345.0,0.1]
[1643820666179,2.4290797,37346.0,37345.0,0.08843901]
[1643820666379,2.0864496,37346.0,37345.0,0.04794881]
[1643820666578,1.65,37345.0,37338.0,0.02076795]
[1643820666779,1.5000621,37344.0,37338.0,0.02076795]
[1643820667078,1.53658649,37339.0,37338.0,0.02076795]
[1643820667279,0.00017941,37343.0,37338.0,0.00402819]
[1643820667678,0.01673976,37339.0,37338.0,0.00402819]
[1643820667978,0.8034,37344.0,37338.0,0.00402819]
[1643820668178,1.05752572,37344.0,37338.0,0.00402819]
[1643820668430,1.05752572,37344.0,37338.0,0.08772695]
[1643820668431,0.00059976,37340.0,37338.0,0.08772695]
[1643820669124,0.00059976,37340.0,37338.0,0.02076795]
[1643820669322,0.00017941,37343.0,37338.0,0.39866399]
[1643820669623,0.8034,37344.0,37343.0,0.26901705]
[1643820670024,0.8034,37344.0,37340.0,0.066957]
[1643820670422,0.94597414,37344.0,37338.0,0.39866399]
[1643820670622,0.7034,37344.0,37338.0,0.08773295]
[1643820670835,0.62850209,37344.0,37339.0,0.06696312]
[1643820671024,0.62850209,37344.0,37339.0,0.16636312]
[1643820671225,0.62850209,37344.0,37339.0,0.26636312]
[1643820671425,0.00017941,37345.0,37340.0,1.53389095]
[1643820671725,0.00016822,37346.0,37342.0,0.066945]
[1643820671925,0.00016822,37346.0,37342.0,0.200835]
[1643820672371,0.00016822,37346.0,37343.0,0.1013065]
[1643820672576,0.00016822,37346.0,37343.0,0.2352025]
[1643820672773,0.00016822,37346.0,37343.0,0.2852025]
[1643820673074,2.08104819,37345.0,37342.0,0.200835]
[1643820673275,2.0812276,37345.0,37337.0,0.434763]
[1643820673574,2.0812276,37345.0,37337.0,0.46868331]
[1643820673871,0.00017941,37344.0,37339.0,0.066964]
[1643820674072,0.00016867,37343.0,37340.0,0.25215331]
[1643820675275,0.00034808,37343.0,37340.0,0.25215331]
[1643820675475,0.00034808,37343.0,37339.0,0.066961]
[1643820676626,0.00034808,37343.0,37342.0,0.26943889]
[1643820676824,0.00016867,37343.0,37342.0,0.26943889]
[1643820677027,0.55016867,37343.0,37342.0,0.26943889]
[1643820677223,0.55016867,37343.0,37339.0,0.133919]
[1643820677423,0.55016867,37343.0,37338.0,0.15722115]
[1643820677629,0.55016867,37343.0,37338.0,0.06696002]
[1643820678024,0.5532079,37343.0,37338.0,0.06696002]
[1643820678224,0.5532079,37343.0,37338.0,0.05394348]
[1643820678426,0.4532079,37343.0,37338.0,0.12090248]
[1643820679025,9.576e-05,37342.0,37338.0,0.06695974]
[1643820679225,0.30610809,37342.0,37338.0,0.06695974]
[1643820679425,0.00017941,37342.0,37337.0,0.13439853]
[1643820679674,0.00017941,37342.0,37337.0,0.00048453]
[1643820680074,0.45338731,37343.0,37331.0,1.349864]
[1643820680277,0.88066007,37343.0,37337.0,0.00048453]
[1643820680571,0.29069279,37339.0,37337.0,0.00048453]
[1643820681373,0.29069279,37339.0,37333.0,0.066967]
[1643820681573,0.29069279,37339.0,37336.0,0.00048454]
[1643820681973,0.00017941,37341.0,37336.0,0.00048454]
[1643820682176,0.0408,37339.0,37336.0,0.00048454]
[1643820682574,0.0408,37339.0,37335.0,0.27472628]
[1643820682976,0.0408,37339.0,37336.0,0.31850532]
[1643820683426,0.04097941,37339.0,37336.0,0.31850532]